Cogmind - Beta 13 @@@ ROGUE MODE // 2024.05.03 @ 00:53:24 Player: A Moose Result: Destroyed by 8P-5BN(z) with Makeshift Laser Performance ------------- Evolutions (3) 1500 Regions Visited (11) 2200 Robots Destroyed (99) 495 Value Destroyed (3829) 3829 Prototype IDs (32) 640 Alien Tech Used (0) 0 Bonus (2432) 2432 TOTAL SCORE: 11096 Bonus ------- High Alert Combat Kills 354 Follower Combat Kills 701 Entered Garrisons 200 Used RIF Installer 1000 Aligned with FarCom 300 Friendly Fire -123 Cogmind --------- Core Integrity 0/700 Matter 36/450 Energy 260/280 System Corruption 0% Temperature Cool (86) Movement Rolling (125) Ox3 Location -7/Zion Parts ------- > --- POWER (1) -------- Cooled Ion Engine > --- PROPULSION (2) --- Wheel Wheel > --- UTILITY (7) ------ High-capacity Storage Unit Large Matter Pod Improved Signal Interpreter Improved Terrain Scan Processor Core Analyzer Improved Shield Generator > --- WEAPON (3) ------- Makeshift Laser Flak Cannon Slug Cannon > --- INVENTORY (20) --- Cooled Ion Engine Cooled Ion Engine Makeshift Power Source Makeshift Power Source Compact Wheel Makeshift Hacking Suite Relay Coupler [NC] (31) Relay Coupler [Hunter] (18) Trap Reconfigurator Heavy Laser Heavy Laser Missile Launcher Scatter Rocket Array Remote Datajack Plasma Cutter Shock Maul Peak State ------------ > --- POWER ------------ Improved Deuterium Engine > --- PROPULSION ------- Wheel Wheel > --- UTILITY ---------- Advanced Heat Sink High-capacity Storage Unit Improved Signal Interpreter Improved Terrain Scan Processor Improved Power Shielding Improved Light Armor Plating Trap Reconfigurator > --- WEAPON ----------- Gauss Rifle Assault Cannon Gauss Cannon > --- INVENTORY -------- Cooled Ion Engine Cooled Ion Engine Cooled Ion Engine Wheel Wheel Wheel Compact Wheel Large Matter Pod Terrain Scanner Hardened Medium Armor Plating Medium Reactive Plating Improved Shield Generator Relay Coupler [NC] Relay Coupler [Hunter] Gauss Rifle Gauss Rifle Scatter Rocket Array Remote Datajack Plasma Cutter Shock Maul [Rating: 49] Favorites ----------- Power Cooled Ion Engine Engine Cooled Ion Engine Propulsion Wheel Leg Aluminum Leg Wheel Wheel Utility High-capacity Storage Unit Device Advanced Heat Sink Storage High-capacity Storage Unit Processor Improved Terrain Scan Processor Hackware Relay Coupler [Sentry] Protection Improved Power Shielding Weapon Advanced Beam Cannon Energy Gun Heavy Laser Energy Cannon Advanced Beam Cannon Ballistic Gun Light Assault Rifle Ballistic Cannon Assault Cannon Launcher Proton Missile Launcher Special Weapon Plasma Cutter Impact Weapon Shock Maul Build | -11 -10 -10 -10 -9 -8 -8 -8 -7 -7 -7 -7 ------- Run | Yrd Mat Min Exi Min Mat Sto Gar Fac Low Low Zio Slots Evolved 6 | . . . . . 4 . . 2 . . . Power . | . . . . . . . . . . . . Propulsion . | . . . . . . . . . . . . Utility 5 | . . . . . 3 . . 2 . . . Weapon 1 | . . . . . 1 . . . . . . Parts Attached 119 | 6 . 16 2 . 6 26 14 32 1 9 7 Power 6 | 1 . 1 . . . 2 . 1 . 1 . Engine 6 | 1 . 1 . . . 2 . 1 . 1 . Core . | . . . . . . . . . . . . Reactor . | . . . . . . . . . . . . Propulsion 18 | 2 . 6 . . . 1 . 5 . 3 1 Treads . | . . . . . . . . . . . . Leg 1 | . . 1 . . . . . . . . . Wheel 17 | 2 . 5 . . . 1 . 5 . 3 1 Hover . | . . . . . . . . . . . . Flight . | . . . . . . . . . . . . Utility 45 | 1 . 1 1 . 3 8 12 16 . 1 2 Device 29 | . . . . . 2 5 10 11 . . 1 Storage 3 | 1 . . 1 . . . . . . . 1 Processor 4 | . . . . . . 1 1 2 . . . Hackware 1 | . . . . . . . 1 . . . . Protection 8 | . . 1 . . 1 2 . 3 . 1 . Artifact . | . . . . . . . . . . . . Weapon 50 | 2 . 8 1 . 3 15 2 10 1 4 4 Energy Gun 12 | 1 . 2 1 . 1 4 . 2 . . 1 Energy Cannon 2 | . . . . . 2 . . . . . . Ballistic Gun 12 | 1 . 5 . . . 1 1 4 . . . Ballistic Cannon 9 | . . . . . . 4 . 2 . 1 2 Launcher 11 | . . 1 . . . 3 . 2 1 3 1 Special Weapon 2 | . . . . . . 2 . . . . . Impact Weapon 2 | . . . . . . 1 1 . . . . Slashing Weapon . | . . . . . . . . . . . . Piercing Weapon . | . . . . . . . . . . . . Special Melee Weapon . | . . . . . . . . . . . . Unidentified Prototypes 9 | . . . . . 1 8 . . . . . Parts Lost 30 | . . 7 . . . 1 . 14 . 4 4 Power 2 | . . 1 . . . . . . . 1 . Propulsion 12 | . . 4 . . . 1 . 4 . 2 1 Utility 7 | . . . . . . . . 3 . 1 3 Weapon 9 | . . 2 . . . . . 7 . . . Highest Loss Streak 6 | . . 4 . . . 1 . 6 . 2 4 To Critical Strikes . | . . . . . . . . . . . . Average Slot Usage (%) 93 | . 85 81 100 100 86 99 97 93 96 93 82 Engine 8 | . 14 11 14 14 9 9 9 7 7 6 7 Wheel 18 | . 28 25 28 28 18 17 18 14 15 15 14 Device 10 | . . . . . 9 16 9 17 15 11 6 Storage 9 | . 14 14 14 14 9 9 9 7 7 7 11 Processor 10 | . . . . . . 8 6 11 23 23 23 Protection 11 | . . 1 14 14 16 11 18 13 7 9 5 Energy Gun 7 | . 14 10 10 14 11 6 9 1 15 10 4 Energy Cannon 3 | . . . . . 8 11 9 1 . . . Ballistic Gun 4 | . 14 16 17 14 4 . 1 5 . . . Ballistic Cannon 4 | . . . . . . 7 . 8 . 6 7 Impact Weapon 1 | . . . . . . . 7 1 . . . Naked Turns . | . . . . . . . . . . . . Heaviest Build 89 | 14 14 15 47 47 58 65 64 80 87 89 77 Greatest Support 26 | 20 20 20 20 20 20 20 20 26 20 20 20 Greatest Overweight (x) 8 | 3 . 2 2 2 2 6 3 6 4 8 3 Average Overweight (x) 2 | . . . . 2 2 2 3 2 3 3 3 Largest Inventory Capacity 20 | 8 8 8 20 20 20 20 20 20 20 20 20 Average Capacity 18 | 7 8 8 11 20 20 20 20 20 20 20 20 Most Carried 20 | 5 4 8 10 13 20 20 20 20 20 20 20 Average Carried 17 | 3 2 7 8 12 15 19 19 19 18 19 17 Final Capacity 20 | 8 8 8 20 20 20 20 20 20 20 20 20 Final Carried 20 | 2 4 8 10 13 20 20 20 18 20 20 16 Class Distribution -------------------- 31% | Scavenger-Mutant 30% | Scavenger-Skirmisher 15% | Mutant 10% | Skirmisher 5% | Commander-Mutant 3% | Scavenger-Tank Dominant Class ---------------- Mutant | -10/Materials Scavenger-Mutant | -10/Mines Scavenger-Mutant | -10/Exiles Scavenger-Mutant | -9/Mines Scavenger-Skirmisher | -8/Materials Skirmisher | -8/Storage Scavenger-Mutant | -8/Garrison Scavenger-Skirmisher | -7/Factory Scavenger-Skirmisher | -7/Lower Caves Mutant | -7/Lower Caves Mutant | -7/Zion Resources | -11 -10 -10 -10 -9 -8 -8 -8 -7 -7 -7 -7 ----------- Run | Yrd Mat Min Exi Min Mat Sto Gar Fac Low Low Zio Matter Collected 2331 | 213 . 401 40 . 59 315 212 475 299 231 86 Remotely . | . . . . . . . . . . . . Salvage Created 2737 | . . 409 . . 117 550 352 625 285 269 130 Parts 165 | . . 41 . . 10 38 9 30 11 13 13 Haulers Intercepted 2 | . . . . . 2 . . . . . . Recyclers Shooed 2 | . . . . . 1 . . 1 . . . Parts Field Recycled . | . . . . . . . . . . . . Retrieved Matter . | . . . . . . . . . . . . Parts Self-Destructed 18 | . . . . . . . . . 10 8 . Prevented 3 | . . . . . . . . . 2 1 . Kills | -11 -10 -10 -10 -9 -8 -8 -8 -7 -7 -7 -7 ------- Run | Yrd Mat Min Exi Min Mat Sto Gar Fac Low Low Zio Combat Hostiles Destroyed 74 | . . 16 . . . 13 7 20 5 11 2 Melee 1 | . . . . . . . 1 . . . . Guns 25 | . . 11 . . . 4 4 2 2 2 . Cannons 20 | . . . . . . 9 1 9 . 1 . AOE 25 | . . 3 . . . . . 9 3 8 2 Classes Destroyed 14 | . . 4 . . 2 2 . 3 1 . 2 Worker 8 | . . 3 . . . 1 . 4 . . . Builder 3 | . . 1 . . 1 1 . . . . . Hauler 2 | . . . . . 2 . . . . . . Mechanic 1 | . . . . . . . . 1 . . . Watcher 1 | . . . . . 1 . . . . . . Swarmer 24 | . . 10 . . . 4 . 3 . 7 . Grunt 32 | . . 6 . . . 2 7 10 3 4 . Brawler 1 | . . . . . . . . . 1 . . Duelist 1 | . . . . . . . . 1 . . . Sentry 10 | . . . . . . 6 1 3 . . . Hunter 4 | . . . . . . 1 . 2 1 . . Programmer 1 | . . . . . . . . 1 . . . Zionite 9 | . . . . . . . . . . . 9 Marauder 2 | . . . . . . . . . . . 2 Best Kill Streak 7 | . . 5 . . 2 4 2 7 5 7 5 Combat Bots Only 7 | . . 5 . . . 4 2 6 5 7 2 Max Kills in Single Turn 6 | . . 3 . . 1 2 1 6 2 5 2 Gunslinging . | . . . . . . . . . . . . Exploded 5 | . . 3 . . . . . 4 2 5 1 Melee 1 | . . . . . . . 1 . . . . Uniques/NPCs Destroyed . | . . . . . . . . . . . . Combat | -11 -10 -10 -10 -9 -8 -8 -8 -7 -7 -7 -7 -------- Run | Yrd Mat Min Exi Min Mat Sto Gar Fac Low Low Zio Hostile Shots Fired 425 | . . 93 . . . 35 15 155 13 74 40 Missed 122 | . . 18 . . . 6 4 52 4 18 20 Damage Taken 4684 | . . 817 . . . 292 205 1850 139 653 728 Core 996 | . . 148 . . . 95 47 427 23 91 165 Absorbed by Shields 44 | . . . . . . . . . . . 44 Redirected to Shielding 109 | . . 2 . . . . . 107 . . . Ignored by Resistances 229 | . . . . . . . . . 19 210 . Core Remaining (%) 71 | 100 . . . 40 . . 74 . . . . Volleys Fired 194 | . . 61 . . 14 19 21 36 8 14 21 Largest 3 | . . 2 . . 3 3 3 3 3 3 3 Hottest 199 | . . 115 . . 199 180 157 177 177 182 142 Shots Fired 440 | . . 116 . . 42 48 39 100 19 31 45 Gun 275 | . . 114 . . 32 14 27 43 17 14 14 Cannon 148 | . . . . . 10 34 12 54 . 13 25 Launcher 17 | . . 2 . . . . . 3 2 4 6 Special . | . . . . . . . . . . . . Kinetic 221 | . . 62 . . 9 14 13 85 . 13 25 Thermal 202 | . . 52 . . 33 34 26 12 17 14 14 Explosive 13 | . . 2 . . . . . 3 . 2 6 Electromagnetic 4 | . . . . . . . . . 2 2 . Robot Hit Streak 14 | . . 9 . . 6 8 14 7 7 6 5 Robot Miss Streak 12 | . . 3 . . 6 3 2 3 2 11 12 Penetration Max 1 | . . . . . . . . 1 . . . Secondary Targets 4 | . . 3 . . . . . 1 . . . Max Gunslinging Chain 1 | . . 1 . . . . . 1 . . . Shots Hit Robots 258 | . . 70 . . 21 29 28 57 13 20 20 Core Hits 201 | . . 29 . . 8 19 12 60 10 24 39 Critical Kills 3 | . . . . . . 1 1 . . . 1 Critical Parts Destroyed 3 | . . . . . . . 1 1 . . 1 Critical Strikes 16 | . . 3 . . 1 2 3 3 . 1 3 Burn 8 | . . 3 . . 1 1 1 . . 1 1 Destroy 3 | . . . . . . . . 1 . . 2 Blast 2 | . . . . . . . . 2 . . . Smash 3 | . . . . . . 1 2 . . . . Melee Attacks 21 | . . . . . . 1 20 . . . . Impact 21 | . . . . . . 1 20 . . . . Slashing . | . . . . . . . . . . . . Piercing . | . . . . . . . . . . . . Sneak Attacks 1 | . . . . . . 1 . . . . . Combat Hostiles . | . . . . . . . . . . . . Follow-up Attacks . | . . . . . . . . . . . . Damage Inflicted 8374 | . . 953 . . 316 714 781 2687 429 1097 1397 Guns 2376 | . . 805 . . 233 175 259 468 212 172 52 Cannons 2034 | . . . . . 83 459 247 812 . 124 309 Explosions 3608 | . . 148 . . . . . 1406 217 801 1036 Melee 355 | . . . . . . 80 275 . . . . Ramming 1 | . . . . . . . . 1 . . . Kinetic 2217 | . . 334 . . 29 161 89 1171 . 124 309 Thermal 2260 | . . 471 . . 287 473 417 109 279 172 52 Explosive 3168 | . . 148 . . . . . 1406 . 578 1036 Electromagnetic 373 | . . . . . . . . . 150 223 . Impact 355 | . . . . . . 80 275 . . . . Slashing . | . . . . . . . . . . . . Piercing . | . . . . . . . . . . . . Highest Corruption 1 | . . . . . . . . 1 1 1 1 Average Corruption 1 | . . . . . . . . 1 1 1 1 Corruption Purged . | . . . . . . . . . . . . Corruption Blocked . | . . . . . . . . . . . . Effects 21 | . . . . . . . . 8 3 10 . Message Errors 6 | . . . . . . . . 2 . 4 . Matter Fused 4 | . . . . . . . . 1 2 1 . Heat Flow Errors 4 | . . . . . . . . 2 . 2 . Energy Discharges 4 | . . . . . . . . 2 . 2 . Data Loss (minor) 2 | . . . . . . . . 1 . 1 . Misfires 1 | . . . . . . . . . 1 . . Overload Shots . | . . . . . . . . . . . . Overflow Damage 140 | . . 11 . . . . 88 24 8 8 1 Projectiles . | . . . . . . . . . . . . Explosions 52 | . . 11 . . . . . 24 8 8 1 Melee 88 | . . . . . . . 88 . . . . Knockbacks 18 | . . . . . . . 3 5 . 3 7 Impact 2 | . . . . . . . 2 . . . . Kinetic 15 | . . . . . . . . 5 . 3 7 Secondary 1 | . . . . . . . 1 . . . . Self-Inflicted Damage 623 | . . 42 . . . . . 153 . . 428 Shots 22 | . . 2 . . . . . 3 . . 17 Rammed 1 | . . . . . . . . 1 . . . Targets Rammed 1 | . . . . . . . . 1 . . . Kicked . | . . . . . . . . . . . . Crushed . | . . . . . . . . . . . . Highest Temperature 289 | . . 289 . . 234 159 48 183 149 240 144 Average Temperature 65 | . . 76 . . 67 45 19 38 53 103 51 Received Heat Transfer 921 | . . 228 . . . 72 117 282 72 144 6 Siege Activations . | . . . . . . . . . . . . Robots Corrupted . | . . . . . . . . . . . . Combat Hostiles . | . . . . . . . . . . . . Parts Fried 1 | . . . . . . . 1 . . . . Impact Corruptions 3 | . . . . . . . 3 . . . . Robots Melted 2 | . . 2 . . . . . . . . . Combat Hostiles 2 | . . 2 . . . . . . . . . Parts Melted 11 | . . 5 . . . 2 2 . 1 1 . Heat Transferred 5193 | . . 1443 . . 703 962 814 222 457 407 185 Parts Sabotaged . | . . . . . . . . . . . . Parts Stolen . | . . . . . . . . . . . . Parts Stripped . | . . . . . . . . . . . . Power Chain Reactions 1 | . . . . . . . . . 1 . . Alert | -11 -10 -10 -10 -9 -8 -8 -8 -7 -7 -7 -7 ------- Run | Yrd Mat Min Exi Min Mat Sto Gar Fac Low Low Zio Peak Influence 980 | . . 361 . . 71 368 980 721 . . . Initial 514 | . . . . . . 29 166 514 . . . Average 372 | . . 177 . . 20 101 676 573 . . . Maximum Alert Level 3 | . . 1 . . . 1 3 3 . . . Low Security (%) 39 | 100 100 61 . 100 100 80 9 . . . . Level 1 12 | . . 38 . . . 19 10 . . . . Level 2 35 | . . . . . . . 25 95 . . . Level 3 13 | . . . . . . . 54 4 . . . Level 4 . | . . . . . . . . . . . . Level 5 . | . . . . . . . . . . . . High Security . | . . . . . . . . . . . . Max Security . | . . . . . . . . . . . . Squads Dispatched 14 | . 1 . . . . 3 . 10 . . . Investigation 4 | . 1 . . . . 2 . 1 . . . Extermination 2 | . . . . . . . . 2 . . . Reinforcement 4 | . . . . . . 1 . 3 . . . Assault 3 | . . . . . . . . 3 . . . Garrison 1 | . . . . . . . . 1 . . . Intercept . | . . . . . . . . . . . . Searches Triggered . | . . . . . . . . . . . . Construction Impeded 1 | . . . . . . . . 1 . . . Haulers Reinforced . | . . . . . . . . . . . . Active Scanning Responses . | . . . . . . . . . . . . Cargo Convoy Interrupts . | . . . . . . . . . . . . Stealth | -11 -10 -10 -10 -9 -8 -8 -8 -7 -7 -7 -7 --------- Run | Yrd Mat Min Exi Min Mat Sto Gar Fac Low Low Zio Distress Signals 1 | . . 1 . . . . . . . . . Communications Jammed . | . . . . . . . . . . . . Distress Signals . | . . . . . . . . . . . . Times Spotted 127 | . . 24 . . 5 16 19 25 12 12 14 Peak Tracking Total 9 | . . 4 . . 2 4 3 6 9 7 5 Tactical Retreats 6 | . . 1 . . . . . 1 . 1 3 Traps | -11 -10 -10 -10 -9 -8 -8 -8 -7 -7 -7 -7 ------- Run | Yrd Mat Min Exi Min Mat Sto Gar Fac Low Low Zio Traps Triggered 7 | . 1 . . . . 2 3 1 . . . Indirectly . | . . . . . . . . . . . . Trap Hack Attempts . | . . . . . . . . . . . . Triggered . | . . . . . . . . . . . . Disarmed . | . . . . . . . . . . . . Reprogrammed . | . . . . . . . . . . . . Reused 4 | . . . . . . . . 4 . . . Traps Reconfigurated 20 | . . . . . . 2 9 9 . . . Traps Extracted . | . . . . . . . . . . . . Installed . | . . . . . . . . . . . . Triggered 4 | . . . . . . . . 4 . . . Machines | -11 -10 -10 -10 -9 -8 -8 -8 -7 -7 -7 -7 ---------- Run | Yrd Mat Min Exi Min Mat Sto Gar Fac Low Low Zio Machines Disabled 8 | . . . . . . 2 4 1 . . 1 Max in Single Turn 1 | . . . . . . 1 1 1 . . 1 Garrison Access 1 | . . . . . . . . 1 . . . Garrison Relay 4 | . . . . . . . 4 . . . . Machines Repaired . | . . . . . . . . . . . . Machines Dismantled 2 | . . . . . . 2 . . . . . Machines Sabotaged . | . . . . . . . . . . . . Overloaded Fab Kills . | . . . . . . . . . . . . Hacking | -11 -10 -10 -10 -9 -8 -8 -8 -7 -7 -7 -7 --------- Run | Yrd Mat Min Exi Min Mat Sto Gar Fac Low Low Zio Machines Accessed 25 | . 1 . 1 . . 11 3 8 . 1 . Terminals 20 | . 1 . . . . 10 3 6 . . . Fabricators 1 | . . . . . . . . 1 . . . Repair Stations . | . . . . . . . . . . . . Recycling Units . | . . . . . . . . . . . . Scanalyzers . | . . . . . . . . . . . . Garrison Access 2 | . . . . . . 1 . 1 . . . Total Hacks 42 | . 2 . 1 . . 21 5 12 . 1 . Successful 18 | . . . 1 . . 8 1 7 . 1 . Failed 24 | . 2 . . . . 13 4 5 . . . Catastrophic 5 | . . . . . . 3 . 2 . . . Database Lockouts . | . . . . . . . . . . . . Manual 8 | . 2 . 1 . . 4 . 1 . . . Terminals 37 | . 2 . . . . 20 5 10 . . . Fabricators 1 | . . . . . . . . 1 . . . Repair Stations . | . . . . . . . . . . . . Recycling Units . | . . . . . . . . . . . . Scanalyzers . | . . . . . . . . . . . . Garrison Access 2 | . . . . . . 1 . 1 . . . Terminal Hacks 14 | . . . 1 . . 6 1 5 . 1 . Record 2 | . . . . . . . . 1 . 1 . Robot Analysis 2 | . . . . . . 2 . . . . . Open Door 3 | . . . . . . 3 . . . . . Branch Access Points 1 | . . . . . . . . 1 . . . Emergency Access Points 2 | . . . . . . . 1 1 . . . Locate Traps 3 | . . . . . . 1 . 2 . . . Derelict Proto ID Bank 1 | . . . 1 . . . . . . . . Fabricator Hacks 1 | . . . . . . . . 1 . . . Network Status 1 | . . . . . . . . 1 . . . Repair Station Hacks . | . . . . . . . . . . . . Recycling Unit Hacks . | . . . . . . . . . . . . Scanalyzer . | . . . . . . . . . . . . Garrison Access Hacks 2 | . . . . . . 1 . 1 . . . Unlock Access 1 | . . . . . . 1 . . . . . Seal Access 1 | . . . . . . . . 1 . . . Unauthorized Hacks 1 | . . . . . . 1 . . . . . Terminals 1 | . . . . . . 1 . . . . . Assimilate 1 | . . . . . . 1 . . . . . Fabricators . | . . . . . . . . . . . . Repair Stations . | . . . . . . . . . . . . Recycling Units . | . . . . . . . . . . . . Scanalyzers . | . . . . . . . . . . . . Garrison Access . | . . . . . . . . . . . . Data Cores Recovered . | . . . . . . . . . . . . Used . | . . . . . . . . . . . . Hacking Detections 16 | . 1 . . . . 8 2 5 . . . Full Trace Events 2 | . . . . . . . 1 1 . . . Feedback Events . | . . . . . . . . . . . . Feedback Blocked . | . . . . . . . . . . . . Robot Schematics Acquired . | . . . . . . . . . . . . Robots Built . | . . . . . . . . . . . . Authchips . | . . . . . . . . . . . . Time . | . . . . . . . . . . . . Total Robot Build Rating . | . . . . . . . . . . . . Part Schematics Acquired . | . . . . . . . . . . . . Parts Built . | . . . . . . . . . . . . Authchips . | . . . . . . . . . . . . Time . | . . . . . . . . . . . . Total Part Build Rating . | . . . . . . . . . . . . Parts Repaired . | . . . . . . . . . . . . Time . | . . . . . . . . . . . . Parts Recycled . | . . . . . . . . . . . . Recycled Matter . | . . . . . . . . . . . . Retrieved Matter . | . . . . . . . . . . . . Retrieved Components . | . . . . . . . . . . . . Parts Scanalyzed . | . . . . . . . . . . . . Part Schematics Acquired . | . . . . . . . . . . . . Parts Damaged . | . . . . . . . . . . . . Bothacking | -11 -10 -10 -10 -9 -8 -8 -8 -7 -7 -7 -7 ------------ Run | Yrd Mat Min Exi Min Mat Sto Gar Fac Low Low Zio Used RIF Installer 2 | . . . . . . . 2 . . . . Program Shield 1 | . . . . . . . 1 . . . . Robots Hacked . | . . . . . . . . . . . . Non-combat . | . . . . . . . . . . . . Combat . | . . . . . . . . . . . . Robot Hacks Applied . | . . . . . . . . . . . . Relay Couplers Released 19 | . . . . . . . 19 . . . . Machine Destruction 15 | . . . . . . . 15 . . . . Programmers 4 | . . . . . . . 4 . . . . Attached 1 | . . . . . . . 1 . . . . Fabnet Peak Effective % . | . . . . . . . . . . . . Robots Rewired . | . . . . . . . . . . . . Allies Hacked . | . . . . . . . . . . . . Hacks Repelled . | . . . . . . . . . . . . Allies | -11 -10 -10 -10 -9 -8 -8 -8 -7 -7 -7 -7 -------- Run | Yrd Mat Min Exi Min Mat Sto Gar Fac Low Low Zio Total Allies 14 | . . 4 . . . 10 . . . . . Largest Group 10 | . . 3 3 2 . 10 10 1 . . . Highest-Rated Group 173 | . . 63 63 32 . 173 173 16 . . . Highest-Rated Ally 31 | . . 31 31 16 . 29 29 16 . . . Total Orders . | . . . . . . . . . . . . Ally Attacks 142 | . . 29 . 2 . 24 85 2 . . . Total Damage 1809 | . . 357 . 16 . 320 1103 13 . . . Kills 24 | . . 8 . . . 2 14 . . . . Allies Corrupted . | . . . . . . . . . . . . Allies Melted . | . . . . . . . . . . . . Intel | -11 -10 -10 -10 -9 -8 -8 -8 -7 -7 -7 -7 ------- Run | Yrd Mat Min Exi Min Mat Sto Gar Fac Low Low Zio Robot Analysis Total 2 | . . . . . . 2 . . . . . Derelict Logs Recovered 6 | . . 2 . 1 . . . . 1 2 . Drone Launches . | . . . . . . . . . . . . Drone Recoveries . | . . . . . . . . . . . . Exploration | -11 -10 -10 -10 -9 -8 -8 -8 -7 -7 -7 -7 ------------- Run | Yrd Mat Min Exi Min Mat Sto Gar Fac Low Low Zio Turns Passed 7694 | 46 66 790 323 244 204 1246 1169 1694 403 1229 280 Spaces Moved 5238 | 41 80 546 362 217 111 606 801 1187 283 848 156 Core 33 | 19 . 14 . . . . . . . . . Treads . | . . . . . . . . . . . . Legs 9 | . . 9 . . . . . . . . . Wheels 5196 | 22 80 523 362 217 111 606 801 1187 283 848 156 Hover . | . . . . . . . . . . . . Flight . | . . . . . . . . . . . . Fastest Speed 50 | 50 80 80 80 110 110 110 125 110 125 125 125 Average Speed 116 | 78 80 82 86 110 110 123 125 119 132 137 125 Slowest Speed 200 | 200 80 150 110 110 110 170 125 170 140 200 125 Overloaded Moves . | . . . . . . . . . . . . Propulsion Burnouts . | . . . . . . . . . . . . Robots Hopped . | . . . . . . . . . . . . Cave-ins Triggered . | . . . . . . . . . . . . Exploration Rate (%) 45 | 4 11 77 70 43 11 76 81 23 48 84 20 Regions Visited 11 Branch Regions 7 Pre-discovered Areas 3 | . . 1 . . . . . . 1 1 . Known Exits Taken 5 | . . . . . 1 1 . 1 1 1 . Unknown Exits Taken 5 | 1 1 1 1 1 . . . . . . . Scrap Searched 7 | . . 1 . . . . . . 3 3 . Spaces Dug 5 | . . . . . . . 5 . . . . Terrain Destroyed 248 | . . 19 . . . 4 5 86 4 54 76 Melee 5 | . . . . . . . 5 . . . . Projectile 14 | . . . . . . 4 . 8 . . 2 AOE 229 | . . 19 . . . . . 78 4 54 74 Terrain Rammed . | . . . . . . . . . . . . Walls Destroyed . | . . . . . . . . . . . . Machines Disabled . | . . . . . . . . . . . . Actions | -11 -10 -10 -10 -9 -8 -8 -8 -7 -7 -7 -7 --------- Run | Yrd Mat Min Exi Min Mat Sto Gar Fac Low Low Zio Total 6351 | 54 81 780 373 222 162 1028 892 1383 294 886 196 Wait 609 | . . 138 3 3 18 325 5 100 . 8 9 Move 5226 | 40 79 545 361 216 110 605 799 1186 282 847 156 Hop . | . . . . . . . . . . . . Pick Up 85 | 8 2 13 4 3 12 16 3 18 2 2 2 Fast Attach 12 | . . 4 . . 1 3 1 2 . 1 . Attach 47 | 6 . 6 . . 3 1 1 16 1 6 7 Detach 8 | . . . . . . 1 . 1 1 4 1 Swap 60 | . . 6 2 . 2 22 12 14 . 2 . Drop 48 | . . 7 3 . 2 19 6 9 . 2 . Fire 194 | . . 61 . . 14 19 21 36 8 14 21 Melee 21 | . . . . . . 1 20 . . . . Ram 1 | . . . . . . . . 1 . . . Kick . | . . . . . . . . . . . . Crush . | . . . . . . . . . . . . Escape Stasis 24 | . . . . . . . 24 . . . . Rewire . | . . . . . . . . . . . . Trap . | . . . . . . . . . . . . Miscellaneous 16 | . . . . . . 16 . . . . . Route ------- -11/Scrapyard -10/Materials -10/Mines (discovered 2 exits: [*Mat] / *Exi) -10/Exiles -9/Mines -8/Materials (discovered 2 exits: *Sto x2) -8/Storage (discovered 2 exits: *Fac / Gar) -8/Garrison (discovered 2 exits: *Fac x2) -7/Factory (discovered 2 exits: *Low x2) -7/Lower Caves -7/Lower Caves (discovered 2 exits: *Fac / *Zio) -7/Zion History --------- Turn | Location | Event 12 | -11/Scrapyard | Discovered new exit (range 15) 47 | -11/Scrapyard | Entered Materials 64 | -10/Materials | Discovered new exit (range 16) 113 | -10/Materials | Entered Mines 247 | -10/Mines | Excavation squad dispatched 247 | -10/Mines | A large section of the Mines collapsed 314 | -10/Mines | Build established: Mutant 420 | -10/Mines | Lost 4 parts (1p2n1w) 497 | -10/Mines | Excavation squad dispatched 510 | -10/Mines | Core integrity fell below 50% 607 | -10/Mines | Assisted by bots powering up and referring to "LRC-V3" 608 | -10/Mines | Learned Materials terminal intel 706 | -10/Mines | Build established: Scavenger-Mutant 747 | -10/Mines | Excavation squad dispatched 766 | -10/Mines | Learned location of Storage (-8) 854 | -10/Mines | Discovered new exit (range 15) 884 | -10/Mines | Received a Mining Laser from a helpful Derelict 884 | -10/Mines | Deemed a non-threat by the Exiles lab entrance 884 | -10/Mines | Discovered new exit (range 5) 903 | -10/Mines | Entered Exiles 903 | -10/Exiles | Accompanied by 3 allies 924 | -10/Exiles | Met 8R-AWN 937 | -10/Exiles | Met EX-HEX 959 | -10/Exiles | Met EX-BIN 968 | -10/Exiles | Aligned with FarCom system 969 | -10/Exiles | Given EX-Vault access code 989 | -10/Exiles | Opened EX-Vault 998 | -10/Exiles | Found Trap Reconfigurator 1015 | -10/Exiles | Warned to stay clear of 0b10 Research branches 1041 | -10/Exiles | Met EX-DEC 1211 | -10/Exiles | Discovered new exit (range 11) 1226 | -10/Exiles | Left Exiles lab with Trap Reconfigurator 1226 | -10/Exiles | Entered Mines 1226 | -9/Mines | Accompanied by 2 allies 1376 | -9/Mines | Learned location of 1 exit from Materials 1435 | -9/Mines | Discovered new exit (range 7) 1439 | -9/Mines | YI-UF0 nonchalantly dropped a Grenade Launcher on the ground 1470 | -9/Mines | Entered Materials 1470 | -8/Materials | Evolved 4 slots: Utility x3, Weapon x1 1471 | -8/Materials | Identified exit to Storage 1472 | -8/Materials | Loaded intel: 12 terminal locations 1502 | -8/Materials | Discovered exit to Storage (range 15) 1674 | -8/Materials | Entered Storage 1810 | -8/Storage | Build established: Scavenger-Skirmisher 2205 | -8/Storage | Build established: Skirmisher 2522 | -8/Storage | Discovered new exit (range 13) 2618 | -8/Storage | Found Prototype Launcher 2619 | -8/Storage | Identified Scatter Rocket Array 2841 | -8/Storage | Assisted by bots powering up and referring to "LRC-V3" 2912 | -8/Storage | Identified exit to Garrison 2920 | -8/Storage | Entered Garrison 2920 | -8/Garrison | Accompanied by 10 allies 3020 | -8/Garrison | Triggered checkpoint 3042 | -8/Garrison | Garrison Relay disabled 3132 | -8/Garrison | Triggered checkpoint 3150 | -8/Garrison | Triggered checkpoint 3154 | -8/Garrison | Build established: Commander-Mutant 3209 | -8/Garrison | Discovered new exit (range 12) 3280 | -8/Garrison | Triggered checkpoint 3302 | -8/Garrison | Garrison Relay disabled 3322 | -8/Garrison | Lost 3 allies 3380 | -8/Garrison | Triggered checkpoint 3452 | -8/Garrison | Triggered checkpoint 3489 | -8/Garrison | Garrison Relay disabled 3545 | -8/Garrison | Discovered new exit (range 14) 3584 | -8/Garrison | Build established: Scavenger-Mutant 3617 | -8/Garrison | Installed Relay Interface Framework 3715 | -8/Garrison | Identified exit to Factory 3859 | -8/Garrison | Garrison Relay disabled 3926 | -8/Garrison | Expanded RIF knowledge: Program Shield 4089 | -8/Garrison | Entered Factory 4089 | -7/Factory | Accompanied by 1 ally 4089 | -7/Factory | Evolved 2 slots: Utility x2 4357 | -7/Factory | Garrison activated, responded to threat 4429 | -7/Factory | Lost 4 parts (1n1u2w) 4665 | -7/Factory | Build established: Scavenger-Skirmisher 5105 | -7/Factory | Identified exit to Lower Caves 5289 | -7/Factory | First assault squad dispatched 5380 | -7/Factory | Lost 4 parts (1n3w) 5545 | -7/Factory | Core integrity fell below 50% 5575 | -7/Factory | Lost 6 parts (2n2u2w) 5783 | -7/Factory | Entered Lower Caves 5996 | -7/Lower Caves | Encountered a Warlord checkpoint 5997 | -7/Lower Caves | Learned location of Extension (-5) 6113 | -7/Lower Caves | Discovered new exit (range 5) 6122 | -7/Lower Caves | Identified exit to Lower Caves 6162 | -7/Lower Caves | Attracted the attention of an 0b10 outpost 6186 | -7/Lower Caves | Entered another Lower Caves area 6243 | -7/Lower Caves | Discovered new exit (range 10) 6262 | -7/Lower Caves | Identified exit to Factory 6828 | -7/Lower Caves | Destroyed 7 combat bots 6941 | -7/Lower Caves | Learned location of 1 exit from Research 6949 | -7/Lower Caves | Learned Factory emergency access door positions 7055 | -7/Lower Caves | Learned location of Zion (-7) 7098 | -7/Lower Caves | Build established: Mutant 7122 | -7/Lower Caves | Discovered new exit (range 14) 7157 | -7/Lower Caves | Identified exit to Zion 7415 | -7/Lower Caves | Entered Zion 7430 | -7/Zion | Given A8's code to call for help 7502 | -7/Zion | System corruption cleaned by Quarantine Array 7507 | -7/Zion | RIF detected upon attempting to enter Zion 7507 | -7/Zion | Attacked by Zionites 7507 | -7/Zion | Spotted SQ-2MR(B) 7507 | -7/Zion | Spotted TC-TQG(B) 7513 | -7/Zion | Core integrity fell below 20% 7519 | -7/Zion | Destroyed SQ-2MR(B) 7526 | -7/Zion | Destroyed TC-TQG(B) 7553 | -7/Zion | Lost 4 parts (1n3u) 7695 | -7/Zion | Destroyed by 8P-5BN(z) with Makeshift Laser Last Messages --------------- OM-5BY(z) bursts out of the Twisted Machinery. J8-9FA(z) bursts out of the Twisted Machinery. J8-9FA(z) pulls a Mak. Axe out of the Twisted Machinery. Slug penetrates Wall. J8-9FA(z) knocked back. J8-9FA(z) destroyed. OG-SQ2(z) suffers critical hit (Destroy). OG-SQ2(z) destroyed. Acquired Mak. Power Source. Acquired 21 matter. Acquired 20 matter. Acquired 7 matter. Cloak Generator disabled. CP-BYB(z) knocked back. CP-BYB(z) destroyed. 8P-5BN(z) plays with the Twisted Machinery. 8P-5BN(z) pulls a Mak. Laser out of the Twisted Machinery. JH-0QB(z) destroyed. Map ----- +----------------------------------------------------+ | ?????????????????????????????????????????????????? | | ?????????????????????????????????????????????????? | | ?????????????????????????????????????????????????? | | ?????????????????????????????????????????????????? | | ?????????????????????????????????????????????????? | | ?????????????????????????????????????????????????? | | ?????????????????????????????????????????????????? | | ?????????????????????????????????????????????????? | | ?????????????????????????????????????????????????? | | ?????????????????????????????????????????????????? | | ???????????????????##????????????????????????????? | | ???????????????????#"##########??????????????????? | | ????????????????####" #??????????????????? | | ????????????????#"""" ## ## #??????????????????? | | ????????????????#"""" # # #??????????????????? | | ???????????????##"" "" ###????????????????? | | ???????????????#""" /""" #"#????????????????? | | ??????????????#"#""" "" ""###??????????????? | | ??????????????"""""" " # """"#??????????????? | | ?????????????? """" ## #= """#??????????????? | | ???????????"" "" = = """#??????????????? | | ??????????? "" "" = "###??????????????? | | ??????????? "" "" #????????????????? | | ?????????? "" """ "##???????????????? | | ?????????? """ ""#???????????????? | | ??????????"" = @ ""##???????????????? | | ???????????"" !%* "" "##???????????###??? | | ???????????"" z """ ""#?????????????????# | | ????????????"" """ "#???????#??????#?#? | | ???????????? " "" """ ""##??????????????##? | | ???????????? """""#" """#???????##??????#? | | ???????????? ""##""" ""##???#????????##??? | | ???????????? ""?## " "###?????#???#??????? | | ?????????????" ??????##" """##???????#??????## | | ?????????????" ???????#" %"""########??#???#?# | | ?????????????? ????????##"" %""" # ####????#? | | ???????????????????????"#""% ="""## #??###? | | ????????????????????? """#" ""# # " ####### | | ????????????????????? """" "# ## "" """""""# | | ????????????????????? """" ""# # """ """# | | ?????????????????????? """" "" # | | ?????????????????????? "#"" | | ?????????????????????? """" | | ????????????????????? "" " # | | ???????????????????? ## """" """"# | | ?????????????????? """""""""""# | | ?????????????????? % " # "# ######## | | ?????????????????? [% """"# ##???###? | | ????????????????? ="" " ########### | | ?????????????????? """#" ####???#?#### | +----------------------------------------------------+ Best States ------------- Heat Dissipation 53 Energy Generation 16 Energy Capacity 290 Matter Stores 300 Matter Capacity 450 Sight Range 16 Terrain Scan Range 16 Terrain Scan Density 110 Additional Mass Support 6 Armor Coverage 450 Resistance: KI 30 Core Shielding 20 Power Shielding 66 Evasion (%) 50 Core Analysis 6 Item Schematics ----------------- None Robot Schematics ------------------ None Fabricated ------------ Nothing Alien Tech Used ----------------- None Achievements -------------- None Challenges ------------ None Game ------ Seed ShrapnelHybridShotgun Manual? 0 Play Time 01:13:59 Cumulative 75.1 hours Start 2024.05.02 @ 22:45:33 End 2024.05.03 @ 00:53:24 Sessions 3 Manual Loads 0 Difficulty Rogue Special Mode None Game No. 84 Rogue 75 Adventurer 9 Explorer 0 Win Type - Total 0 Types 0/0/0/0/0/0/0/0/0 Lore% 42 Gallery% 55 Achievement% 42 Wizard Run 0 Options --------- Layout 1 ASCII 0 Keyboard 0 Movement Numpad Keybinds 0 Fullscreen 1 Font 24/Smallcaps Map View 50x35 Zoom Use 0% Tactical HUD 0 Map Filters NONE Filters NONE Steam 1 RUN: 630711c5-787d-43db-bcbc-a1ed8c3bd36b